bitfinex-derivatives/quotes_BTCF0:USTF0_20251204
["timestamp","ask_amount","ask_price","bid_price","bid_amount"]
[1764830203463,0.03016066,93340.0,93339.0,0.71321162]
[1764830204567,0.03016066,93340.0,93339.0,0.80810796]
[1764830207355,0.03016066,93340.0,93339.0,0.80806796]
[1764830208366,0.03016066,93340.0,93339.0,0.71317162]
[1764830211972,0.14968066,93340.0,93339.0,0.71317162]
[1764830212367,0.08959066,93340.0,93339.0,0.71317162]
[1764830213663,0.14968066,93340.0,93339.0,0.71317162]
[1764830215470,0.03016066,93340.0,93339.0,0.71317162]
[1764830215670,0.08959066,93340.0,93339.0,0.71317162]
[1764830215873,0.14968066,93340.0,93339.0,0.71317162]
[1764830217572,0.03016066,93340.0,93339.0,1.14317162]
[1764830217776,0.11952,93369.0,93368.0,0.15009]
[1764830217973,0.14952,93369.0,93368.0,0.15009]
[1764830218271,0.14952,93369.0,93368.0,0.11718]
[1764830218480,0.14952,93369.0,93368.0,0.19325495]
[1764830218883,0.14952,93369.0,93368.0,0.11718]
[1764830219777,0.15152,93369.0,93368.0,0.11718]
[1764830220271,0.14952,93369.0,93368.0,0.19325495]
[1764830220475,0.15052,93369.0,93368.0,0.19325495]
[1764830220674,0.15052,93369.0,93368.0,0.11718]
[1764830220875,0.031,93369.0,93368.0,0.11718]
[1764830221267,0.02114315,93369.0,93368.0,0.69924612]
[1764830221468,0.00016066,93378.0,93377.0,0.11718]
[1764830221677,0.03016066,93378.0,93377.0,0.6254884]
[1764830222477,0.03016066,93378.0,93377.0,0.85060691]
[1764830222670,0.03016066,93378.0,93377.0,0.7554884]
[1764830222873,0.03216066,93378.0,93377.0,0.7554884]
[1764830223374,0.03216066,93378.0,93377.0,0.6254884]
[1764830223573,0.17359066,93378.0,93377.0,0.05892]
[1764830223775,0.17359066,93378.0,93377.0,0.61995]
[1764830223975,0.15511066,93378.0,93377.0,0.61995]
[1764830224373,0.15511066,93378.0,93377.0,0.6959017]
[1764830224582,0.19113066,93378.0,93377.0,0.1348717]
[1764830224771,0.19113066,93378.0,93377.0,0.12203]
[1764830225271,0.09255066,93378.0,93377.0,0.12203]
[1764830225669,0.15511066,93378.0,93377.0,0.12203]
[1764830226276,0.15511066,93378.0,93374.0,0.0866603]
[1764830226468,0.12295,93375.0,93374.0,0.0866603]
[1764830226668,0.12295,93374.0,93373.0,0.0759517]
[1764830226873,0.12295,93374.0,93369.0,0.0107092]
[1764830226874,0.12295,93372.0,93370.0,0.0759517]
[1764830227081,0.12295,93371.0,93370.0,0.1979817]
[1764830227380,0.15295,93371.0,93370.0,0.1979817]
[1764830228175,0.15295,93371.0,93370.0,0.12203]
[1764830229472,0.15395,93371.0,93370.0,0.12203]
[1764830232084,0.1336594,93368.0,93367.0,0.0759517]
[1764830232269,0.14096,93366.0,93361.0,0.04322064]
[1764830232468,0.17096,93366.0,93361.0,0.04322064]
[1764830233982,0.17096,93366.0,93365.0,0.04366111]
[1764830235080,0.17096,93366.0,93365.0,0.04266111]
[1764830235279,0.17296,93366.0,93365.0,0.04266111]
[1764830236679,0.17296,93366.0,93365.0,0.01764905]
[1764830241988,0.1516703,93360.0,93359.0,0.00016066]
[1764830242291,0.12295,93349.0,93348.0,0.0693116]
[1764830242492,0.15295,93349.0,93348.0,0.1327416]
[1764830244390,0.15295,93349.0,93348.0,0.1347416]
[1764830244989,0.15295,93349.0,93348.0,0.1357416]
[1764830245393,0.15295,93349.0,93348.0,0.1337416]
[1764830245893,0.15295,93349.0,93348.0,0.1717316]
[1764830246282,0.15295,93349.0,93348.0,0.1347416]
[1764830246482,0.15295,93349.0,93348.0,0.1337416]
[1764830247298,0.15295,93349.0,93348.0,0.1327416]
[1764830250391,0.15295,93349.0,93348.0,0.0693116]
[1764830250592,0.1336621,93344.0,93343.0,0.12203]
[1764830250799,0.1636621,93344.0,93343.0,0.12203]
[1764830251787,0.1636621,93344.0,93343.0,0.0586]
[1764830251982,0.1636621,93344.0,93339.0,0.00016066]
[1764830251983,0.1336626,93340.0,93339.0,0.00016066]
[1764830252192,0.1636626,93340.0,93339.0,0.00016066]
[1764830252496,0.1636626,93340.0,93330.0,0.13570217]
[1764830252497,0.1336636,93331.0,93330.0,0.13570217]
[1764830252696,0.1636636,93331.0,93330.0,0.13570217]
[1764830255093,0.1636636,93331.0,93330.0,0.13670217]
[1764830255497,0.1636636,93331.0,93330.0,0.13770217]
[1764830255899,0.1636636,93331.0,93330.0,0.07427217]
[1764830256812,0.1636636,93331.0,93330.0,0.13478217]
[1764830257008,0.1636636,93331.0,93330.0,0.01567217]
[1764830258215,0.1636636,93331.0,93330.0,0.08055217]
[1764830259098,0.1636636,93331.0,93330.0,0.01567217]
[1764830260806,0.1636636,93331.0,93330.0,0.13976217]
[1764830262710,0.1636636,93331.0,93330.0,0.01567217]
[1764830262911,0.1636636,93331.0,93330.0,0.07604217]
[1764830263813,0.1636636,93331.0,93330.0,0.13525217]
[1764830266610,0.1636636,93331.0,93330.0,0.07604217]
[1764830266812,0.1636636,93331.0,93330.0,0.13525217]
[1764830268012,0.1636636,93331.0,93330.0,0.01567217]
[1764830268213,0.1636636,93331.0,93330.0,0.13525217]
[1764830270215,0.15295,93331.0,93330.0,0.17161217]
[1764830270412,0.03,93331.0,93330.0,0.17161217]
[1764830271316,0.08922,93331.0,93330.0,0.17161217]
[1764830271715,0.15013,93331.0,93330.0,0.17161217]
[1764830276317,0.15013,93331.0,93330.0,0.24756387]
[1764830278320,0.15013,93331.0,93330.0,0.17161217]
[1764830280816,0.15013,93331.0,93330.0,0.13525217]
[1764830281018,0.15013,93331.0,93330.0,0.07604217]
[1764830281322,0.15013,93331.0,93330.0,0.13525217]
[1764830298925,0.15013,93331.0,93330.0,0.01567217]
[1764830299535,0.15013,93331.0,93330.0,0.09196225]
[1764830300331,0.15013,93331.0,93330.0,0.01567217]
[1764830306323,0.15013,93331.0,93330.0,0.12889217]
[1764830307733,0.11355066,93358.0,93340.0,0.13857]
[1764830307933,0.15426126,93358.0,93357.0,0.11322]
[1764830309131,0.16126126,93358.0,93357.0,0.11322]
[1764830309840,0.16226126,93358.0,93357.0,0.11322]
[1764830310336,0.1241016,93349.0,93348.0,0.11338066]
[1764830310538,0.1541016,93349.0,93348.0,0.00016066]
[1764830312140,0.1571016,93349.0,93348.0,0.00016066]
[1764830312335,0.1241025,93341.0,93340.0,0.05881]
[1764830312540,0.1541025,93341.0,93340.0,0.05881]
[1764830313130,0.1541025,93341.0,93340.0,0.11322]
[1764830313840,0.1551025,93341.0,93340.0,0.20076194]
[1764830314444,0.09031,93341.0,93340.0,0.20076194]
[1764830314834,0.13798,93341.0,93340.0,0.20076194]
[1764830315035,0.13898,93341.0,93340.0,0.20076194]
[1764830315541,0.13798,93341.0,93340.0,0.20076194]
[1764830319143,0.03,93341.0,93340.0,0.20076194]
[1764830320043,0.08441,93341.0,93340.0,0.20076194]
[1764830320240,0.13308,93341.0,93340.0,0.20076194]
[1764830321845,0.13408,93341.0,93340.0,0.20076194]
[1764830323844,0.13308,93341.0,93340.0,0.20076194]
[1764830324148,0.13408,93341.0,93340.0,0.20076194]
[1764830329748,0.031,93341.0,93340.0,0.20076194]
[1764830329949,0.031,93341.0,93340.0,0.23085194]
[1764830330454,0.12745,93341.0,93340.0,0.23085194]
[1764830331148,0.03,93341.0,93340.0,0.23185194]
[1764830331748,0.03,93341.0,93340.0,0.23085194]
[1764830331943,0.03,93341.0,93340.0,0.23185194]
[1764830332544,0.03,93341.0,93340.0,0.23085194]
[1764830332843,0.03,93341.0,93340.0,0.23185194]
[1764830333238,0.03,93341.0,93340.0,0.23285194]
[1764830333451,0.03,93341.0,93340.0,0.23185194]
[1764830333751,0.03,93341.0,93340.0,0.23285194]
[1764830333953,0.03,93341.0,93340.0,0.23185194]
[1764830334154,0.05,93351.0,93350.0,0.09162]
[1764830334452,0.03,93351.0,93350.0,0.09162]
[1764830334960,0.03,93351.0,93350.0,0.1023315]
[1764830336946,0.07952,93351.0,93350.0,0.1023315]
[1764830337456,0.12845,93351.0,93350.0,0.1023315]
[1764830340457,0.031,93351.0,93350.0,0.1023315]
[1764830341759,0.031,93351.0,93350.0,0.1033315]
[1764830342360,0.031,93351.0,93350.0,0.1023315]
[1764830342562,0.031,93351.0,93350.0,0.1033315]
[1764830342754,0.031,93351.0,93350.0,0.1053315]
[1764830342755,0.03,93351.0,93350.0,0.1053315]
[1764830344756,0.07852,93351.0,93350.0,0.1053315]
[1764830344961,0.09488,93339.0,93338.0,0.13320124]
[1764830345154,0.09488,93332.0,93326.0,0.16037583]
[1764830345463,0.1355935,93332.0,93331.0,0.09086066]
[1764830347259,0.1355935,93332.0,93331.0,0.00016066]
[1764830347558,0.1355935,93332.0,93331.0,0.04591066]
[1764830347766,0.1355935,93332.0,93331.0,0.09086066]
[1764830352264,0.07776,93332.0,93331.0,0.09086066]
[1764830352472,0.12488,93332.0,93331.0,0.09086066]
[1764830356374,0.12488,93332.0,93331.0,0.00016066]
[1764830357370,0.12488,93332.0,93331.0,0.04591066]
[1764830357671,0.12488,93332.0,93331.0,0.00016066]
[1764830357972,0.12488,93332.0,93331.0,0.04591066]
[1764830358363,0.12488,93332.0,93331.0,0.00016066]
[1764830358563,0.12488,93332.0,93331.0,0.09086066]
[1764830370985,0.12488,93332.0,93331.0,0.00016066]
[1764830372782,0.12488,93332.0,93330.0,0.01367217]
[1764830372987,0.1055941,93327.0,93326.0,0.00026788]
[1764830373184,0.1355941,93327.0,93326.0,0.00026788]
[1764830373787,0.1355941,93327.0,93326.0,0.01209656]
[1764830374189,0.1278349,93320.0,93317.0,0.00016066]
[1764830374389,0.1578349,93320.0,93317.0,0.00016066]
[1764830375384,0.1578349,93320.0,93319.0,0.00207693]
[1764830375583,0.1578349,93320.0,93319.0,0.00307693]
[1764830376193,0.1578349,93320.0,93319.0,0.01536919]
[1764830380787,0.1578349,93320.0,93319.0,0.11283919]
[1764830381683,0.1354149,93320.0,93319.0,0.11283919]
[1764830384302,0.1648749,93320.0,93319.0,0.11283919]
[1764830385197,0.1648749,93320.0,93319.0,0.06264919]
[1764830385501,0.1648749,93320.0,93319.0,0.11283919]
[1764830385901,0.1648749,93320.0,93319.0,0.06264919]
[1764830386200,0.1648749,93320.0,93319.0,0.11283919]
[1764830387198,0.1648749,93320.0,93319.0,0.06264919]
[1764830387404,0.1648749,93320.0,93319.0,0.01536919]
[1764830387704,0.1648749,93320.0,93319.0,0.06264919]
[1764830389807,0.1648749,93320.0,93319.0,0.11283919]
[1764830392309,0.1648749,93320.0,93319.0,0.01536919]
[1764830393310,0.1648749,93320.0,93319.0,0.06264919]
[1764830394610,0.1648749,93320.0,93319.0,0.11283919]
[1764830395019,0.1648749,93320.0,93319.0,0.01536919]
[1764830395700,0.1648749,93320.0,93319.0,0.00949179]
[1764830395902,0.09479,93318.0,93317.0,0.00016066]
[1764830396112,0.12479,93318.0,93317.0,0.01192416]
[1764830396297,0.12479,93318.0,93317.0,0.00016066]
[1764830396801,0.12486693,93318.0,93317.0,0.00016066]
[1764830397001,0.13086693,93318.0,93317.0,0.00016066]
[1764830397510,0.13086693,93318.0,93317.0,0.0119775]
[1764830397912,0.13086693,93318.0,93317.0,0.0592575]
[1764830398114,0.13086693,93318.0,93317.0,0.0119775]
[1764830398306,0.13086693,93318.0,93317.0,0.0592575]
[1764830398506,0.13086693,93318.0,93317.0,0.1094475]
[1764830401313,0.13086693,93318.0,93317.0,0.0119775]
[1764830402206,0.13086693,93318.0,93317.0,0.1094475]
[1764830403417,0.12586693,93318.0,93317.0,0.1094475]
[1764830403607,0.13186693,93318.0,93317.0,0.1094475]
[1764830404208,0.12997693,93318.0,93317.0,0.1094475]
[1764830404616,0.12897693,93318.0,93317.0,0.1094475]
[1764830404804,0.12797693,93318.0,93317.0,0.1094475]
[1764830405014,0.12897693,93318.0,93317.0,0.1094475]
[1764830405210,0.12797693,93318.0,93317.0,0.1094475]
[1764830408217,0.08236693,93318.0,93317.0,0.1094475]
[1764830408422,0.03507693,93318.0,93317.0,0.1094475]
[1764830409120,0.03507693,93318.0,93309.0,0.13327259]
[1764830409121,0.12797693,93318.0,93309.0,0.13327259]
[1764830409425,0.12797693,93318.0,93286.0,0.00026799]
[1764830409427,0.0871187,93287.0,93286.0,0.00026799]
[1764830409621,0.11719563,93287.0,93286.0,0.01218466]
[1764830409829,0.11719563,93287.0,93286.0,0.10629466]
[1764830410014,0.07899563,93287.0,93286.0,0.10629466]
[1764830410319,0.11719563,93287.0,93286.0,0.10629466]
[1764830410919,0.04379563,93287.0,93286.0,0.10629466]
[1764830412114,0.12019563,93287.0,93286.0,0.10629466]
[1764830412320,0.12019563,93287.0,93286.0,0.01218466]
[1764830413923,0.12019563,93287.0,93286.0,0.10629466]
[1764830414533,0.12019563,93287.0,93286.0,0.01218466]
[1764830414826,0.12019563,93287.0,93286.0,0.06276466]
[1764830415032,0.12019563,93287.0,93286.0,0.10629466]
[1764830415533,0.08199563,93287.0,93286.0,0.10629466]
[1764830416136,0.04379563,93287.0,93286.0,0.10629466]
[1764830417629,0.12019563,93287.0,93286.0,0.10629466]
[1764830423134,0.12019563,93287.0,93286.0,0.01218466]
[1764830423336,0.12019563,93287.0,93286.0,0.10629466]
[1764830429746,0.12019563,93287.0,93286.0,0.01218466]
[1764830431047,0.12019563,93287.0,93286.0,0.06276466]
[1764830431347,0.12019563,93287.0,93286.0,0.10629466]
[1764830434551,0.12019563,93287.0,93286.0,0.06276466]
[1764830435550,0.12019563,93287.0,93286.0,0.01218466]
[1764830439049,0.12019563,93287.0,93286.0,0.11114466]
[1764830439353,0.14911423,93287.0,93286.0,0.11114466]
[1764830439945,0.14911423,93287.0,93286.0,0.05936466]
[1764830440144,0.14911423,93287.0,93286.0,0.01218466]
[1764830448550,0.1142997,93278.0,93277.0,0.0001074]
[1764830448759,0.06962964,93278.0,93246.0,0.00026811]
[1764830449057,0.06962964,93278.0,93258.0,0.08577]
[1764830449058,0.0107219,93259.0,93258.0,0.08577]
[1764830449261,0.0407219,93259.0,93258.0,0.13627]
[1764830449659,0.0407219,93259.0,93258.0,0.10431]
[1764830449853,0.0407219,93259.0,93258.0,0.13627]
[1764830451759,0.1349419,93259.0,93258.0,0.13627]
[1764830451959,0.13504202,93259.0,93258.0,0.13627]
[1764830454362,0.08793202,93259.0,93258.0,0.13627]
[1764830454557,0.03010012,93259.0,93258.0,0.13627]
[1764830454862,0.12432012,93259.0,93258.0,0.13627]
[1764830456764,0.12432012,93259.0,93258.0,0.10431]
[1764830456965,0.09422,93253.0,93252.0,0.13627]
[1764830457262,0.1349426,93253.0,93252.0,0.13627]
[1764830457667,0.0407226,93253.0,93252.0,0.13627]
[1764830457867,0.1349426,93253.0,93252.0,0.13627]
[1764830458055,0.0407226,93253.0,93252.0,0.13627]
[1764830458257,0.03,93253.0,93252.0,0.13827]
[1764830458670,0.00010012,93259.0,93258.0,0.13627]
[1764830458870,0.03010012,93259.0,93258.0,0.13627]
[1764830462170,0.13368012,93259.0,93258.0,0.10431]
[1764830462374,0.03010012,93259.0,93258.0,0.10431]
[1764830465581,0.1116525,93254.0,93253.0,0.10561]
[1764830465876,0.0908325,93254.0,93253.0,0.10561]
[1764830466069,0.0407225,93254.0,93253.0,0.10561]
[1764830467575,0.0407225,93254.0,93253.0,0.10661]
[1764830467779,0.0908325,93254.0,93253.0,0.10661]
[1764830467969,0.1416525,93254.0,93253.0,0.10661]
[1764830469176,0.1716525,93254.0,93253.0,0.001]
[1764830470670,0.1416525,93254.0,93253.0,0.001]
[1764830471173,0.13093,93254.0,93253.0,0.05396]
[1764830471374,0.08011,93254.0,93253.0,0.10661]
[1764830471574,0.03,93254.0,93253.0,0.1173326]
[1764830471774,0.15181333,93280.0,93267.0,0.116331]
[1764830472077,0.03016084,93268.0,93267.0,0.116331]
[1764830472873,0.03024919,93268.0,93267.0,0.116331]
[1764830473483,0.03124919,93268.0,93267.0,0.116331]
[1764830473785,0.03324919,93268.0,93267.0,0.116331]
[1764830474085,0.05,93278.0,93277.0,0.10561]
[1764830474271,0.0107184,93290.0,93287.0,0.10561]
[1764830474272,0.15093,93288.0,93287.0,0.10561]
[1764830474472,0.13093,93288.0,93287.0,0.10561]
[1764830475583,0.10093,93279.0,93278.0,0.10577084]
[1764830475780,0.13093,93279.0,93278.0,0.10577084]
[1764830476881,0.13093,93279.0,93278.0,0.05312084]
[1764830477078,0.13093,93279.0,93278.0,0.00016084]
[1764830477278,0.13093,93279.0,93278.0,0.05312084]
[1764830477681,0.13093,93279.0,93278.0,0.00016084]
[1764830478489,0.13093,93279.0,93278.0,0.10577084]
[1764830479383,0.13193,93279.0,93278.0,0.10577084]
[1764830479885,0.13293,93279.0,93278.0,0.00016084]
[1764830480282,0.13293,93279.0,93278.0,0.10577084]
[1764830480481,0.13293,93279.0,93278.0,0.05312084]
[1764830481191,0.13293,93279.0,93278.0,0.00016084]
[1764830487492,0.13293,93279.0,93278.0,0.05312084]
[1764830488283,0.13293,93279.0,93278.0,0.10577084]
[1764830492294,0.13293,93279.0,93278.0,0.00016084]
[1764830492486,0.13293,93279.0,93278.0,0.10577084]
[1764830492685,0.13293,93279.0,93278.0,0.00016084]
[1764830494896,0.13293,93279.0,93278.0,0.10339084]
[1764830495199,0.13293,93279.0,93278.0,0.00016084]
[1764830495892,0.13293,93279.0,93278.0,0.10339084]
[1764830497092,0.13293,93279.0,93278.0,0.05055084]
[1764830498499,0.13293,93279.0,93278.0,0.10339084]
[1764830501205,0.16245529,93279.0,93278.0,0.10339084]
[1764830504495,0.13293,93279.0,93278.0,0.10339084]
[1764830505298,0.16246253,93279.0,93278.0,0.10339084]
[1764830506104,0.06153253,93279.0,93278.0,0.10339084]
[1764830506293,0.032,93279.0,93278.0,0.10339084]
[1764830506995,0.05,93289.0,93288.0,0.1443486]
[1764830507195,0.00016084,93297.0,93288.0,0.1443486]
[1764830507196,0.00016084,93297.0,93296.0,0.1135177]
[1764830507394,0.03016084,93297.0,93296.0,0.1028]
[1764830508106,0.00504038,93297.0,93296.0,0.1028]
[1764830508304,0.04,93307.0,93306.0,0.1028]
[1764830508599,0.1097553,93317.0,93316.0,0.1028]
[1764830508903,0.1097553,93317.0,93294.0,0.02718]
[1764830508904,0.1095772,93301.0,93300.0,0.1028]
[1764830509198,0.1395772,93301.0,93300.0,0.1028]
[1764830509994,0.12886,93301.0,93300.0,0.1028]
[1764830510197,0.12886,93301.0,93300.0,0.1038]
[1764830511899,0.1395771,93301.0,93300.0,0.1038]
[1764830513595,0.09886,93292.0,93291.0,0.10296074]
[1764830513804,0.12886,93292.0,93291.0,0.10296074]
[1764830515597,0.12886,93292.0,93291.0,0.04949074]
[1764830515801,0.12886,93292.0,93291.0,0.05049074]
[1764830515998,0.12886,93292.0,93291.0,0.00116074]
[1764830516800,0.10958,93276.0,93275.0,0.1028]
[1764830517007,0.13958,93276.0,93275.0,0.1028]
[1764830519110,0.13958,93276.0,93275.0,0.1038]
[1764830525012,0.17027,93276.0,93275.0,0.001]
[1764830525413,0.112401,93267.0,93266.0,0.09909074]
[1764830525609,0.142401,93267.0,93266.0,0.09909074]
[1764830525807,0.142401,93267.0,93266.0,0.04943074]
[1764830526410,0.142401,93267.0,93266.0,0.00016074]
[1764830526613,0.142401,93267.0,93266.0,0.00316074]
[1764830530318,0.10168,93247.0,93246.0,0.01480833]
[1764830530619,0.13168,93247.0,93246.0,0.01480833]
[1764830530918,0.16237,93247.0,93246.0,0.01480833]
[1764830531508,0.16237,93247.0,93246.0,0.01580833]
[1764830531807,0.16237,93247.0,93246.0,0.01880833]
[1764830532212,0.16237,93247.0,93246.0,0.01680833]
[1764830532817,0.16237,93247.0,93246.0,0.01580833]
[1764830533011,0.16237,93247.0,93222.0,0.02966]
[1764830533012,0.10168,93226.0,93225.0,0.09905074]
[1764830533219,0.13168,93226.0,93225.0,0.09905074]
[1764830533516,0.13168,93226.0,93225.0,0.11369234]
[1764830534108,0.08201,93226.0,93225.0,0.11469234]
[1764830534310,0.08201,93226.0,93225.0,0.11869234]
[1764830534612,0.03,93226.0,93225.0,0.11869234]
[1764830534817,0.00016085,93235.0,93234.0,0.09893]
[1764830535118,0.04016085,93235.0,93234.0,0.09893]
[1764830535619,0.09217085,93235.0,93234.0,0.09893]
[1764830535815,0.04016085,93235.0,93234.0,0.09893]
[1764830536019,0.04016085,93235.0,93234.0,0.1116548]
[1764830536319,0.04016085,93235.0,93234.0,0.10193]
[1764830541112,0.05,93245.0,93244.0,0.09893]
[1764830541313,0.03,93245.0,93244.0,0.09893]
[1764830541912,0.03,93245.0,93244.0,0.1096536]
[1764830543322,0.00016085,93254.0,93253.0,0.1096526]
[1764830543522,0.16253085,93254.0,93253.0,0.09893]
[1764830544916,0.16453085,93254.0,93253.0,0.09893]
[1764830545319,0.16553085,93254.0,93253.0,0.04927]
[1764830545910,0.16553085,93254.0,93253.0,0.09893]
[1764830546117,0.08517085,93254.0,93253.0,0.09893]
[1764830546423,0.08617085,93254.0,93253.0,0.09893]
[1764830546625,0.13584085,93254.0,93253.0,0.09893]
[1764830546924,0.16653085,93254.0,93253.0,0.09893]
[1764830547326,0.16553085,93254.0,93253.0,0.09893]
[1764830547626,0.16453085,93254.0,93253.0,0.09893]
[1764830548629,0.16553085,93254.0,93253.0,0.09893]
[1764830548927,0.16653085,93254.0,93253.0,0.09893]
[1764830549128,0.03069,93247.0,93245.0,0.1096535]
[1764830549429,0.10168,93246.0,93245.0,0.1096535]
[1764830549623,0.13168,93246.0,93245.0,0.1096535]
[1764830551027,0.03,93246.0,93245.0,0.1096535]
[1764830551430,0.031,93246.0,93245.0,0.1096535]
[1764830552031,0.08301,93246.0,93245.0,0.1096535]
[1764830552232,0.031,93246.0,93245.0,0.1096535]
[1764830555635,0.16977,93246.0,93245.0,0.1096535]
[1764830556130,0.1372,93246.0,93245.0,0.1096535]
[1764830556327,0.031,93246.0,93245.0,0.1096535]
[1764830557827,0.03,93246.0,93245.0,0.1096535]
[1764830558028,0.03,93246.0,93245.0,0.1116535]
[1764830558332,0.03,93246.0,93245.0,0.1126535]
[1764830558531,0.16705,93246.0,93245.0,0.1126535]
[1764830559636,0.16705,93246.0,93245.0,0.1116535]
[1764830559834,0.16705,93246.0,93245.0,0.1126535]
[1764830560035,0.16705,93246.0,93245.0,0.1116535]
[1764830560528,0.16705,93246.0,93245.0,0.1106535]
[1764830561335,0.16705,93246.0,93245.0,0.1096535]
[1764830562938,0.16705,93246.0,93240.0,0.11803999]
[1764830562939,0.114904,93241.0,93240.0,0.11803999]
[1764830563136,0.144904,93241.0,93240.0,0.05396]
[1764830563334,0.1149046,93236.0,93235.0,0.10820085]
[1764830563540,0.1449046,93236.0,93235.0,0.10820085]
[1764830565234,0.1449046,93236.0,93235.0,0.10920085]
[1764830565736,0.1449046,93236.0,93235.0,0.00116085]
[1764830565940,0.1449046,93236.0,93235.0,0.00316085]
[1764830567627,0.1449046,93236.0,93235.0,0.11120085]
[1764830568839,0.13418,93236.0,93235.0,0.11120085]
[1764830569147,0.08253,93236.0,93235.0,0.11120085]
[1764830569345,0.13418,93236.0,93235.0,0.11120085]
[1764830569643,0.03,93236.0,93235.0,0.11120085]
[1764830570442,0.13418,93236.0,93235.0,0.11120085]
[1764830576945,0.1449046,93236.0,93235.0,0.11120085]
[1764830578243,0.1449046,93236.0,93235.0,0.00316085]
[1764830579835,0.1449046,93236.0,93235.0,0.05712085]
[1764830581139,0.1449046,93236.0,93235.0,0.00316085]
[1764830582043,0.10418,93226.0,93220.0,0.00999999]
[1764830582242,0.13418,93226.0,93220.0,0.00999999]
[1764830582946,0.1449057,93226.0,93218.0,0.0107265]
[1764830583141,0.1449057,93226.0,93220.0,0.02072629]
[1764830583545,0.1449057,93226.0,93225.0,0.01976234]
[1764830586043,0.02779,93216.0,93212.0,0.0107273]
[1764830586344,0.05779,93216.0,93211.0,0.1095773]
[1764830586541,0.09964,93212.0,93211.0,0.12506214]
[1764830586740,0.12964,93212.0,93211.0,0.12506214]
[1764830587137,0.12975924,93212.0,93211.0,0.12506214]
[1764830587948,0.14048654,93212.0,93211.0,0.11433484]
[1764830588737,0.14048654,93212.0,93211.0,0.11933484]
[1764830591850,0.14048654,93212.0,93211.0,0.13006224]
[1764830594052,0.14048654,93212.0,93211.0,0.11933484]
[1764830594650,0.14048654,93212.0,93211.0,0.02048484]
[1764830598652,0.14048654,93212.0,93211.0,0.07347484]
[1764830599753,0.14048654,93212.0,93211.0,0.11933484]
[1764830602944,0.12975924,93212.0,93211.0,0.11933484]
[1764830608653,0.12975924,93212.0,93206.0,0.00026822]
[1764830608963,0.1103679,93207.0,93206.0,0.01554294]
[1764830609257,0.12964,93207.0,93206.0,0.11439294]
[1764830609456,0.03,93207.0,93206.0,0.11439294]
[1764830609851,0.03,93207.0,93206.0,0.11639294]
[1764830610550,0.03,93207.0,93206.0,0.11439294]
[1764830610960,0.033,93207.0,93206.0,0.11439294]
[1764830611360,0.033,93207.0,93206.0,0.21032011]
[1764830611754,0.00011924,93212.0,93211.0,0.09885]
[1764830611953,0.03011924,93212.0,93211.0,0.6080974]
[1764830612756,0.03011924,93212.0,93211.0,0.1095774]
[1764830612957,0.03011924,93212.0,93211.0,0.6080974]
[1764830613265,0.03411924,93212.0,93211.0,0.6080974]
[1764830616668,0.03411924,93212.0,93211.0,0.6080574]
[1764830617062,0.03411924,93212.0,93207.0,0.13336963]
[1764830617063,0.0947,93208.0,93207.0,0.13336963]
[1764830617267,0.1054279,93207.0,93206.0,0.01554294]
[1764830617563,0.1354279,93207.0,93206.0,0.01554294]
[1764830617763,0.1247,93207.0,93206.0,0.11239294]
[1764830618154,0.1247,93207.0,93206.0,0.01554294]
[1764830618767,0.1247,93207.0,93206.0,0.11239294]
[1764830619360,0.1287,93207.0,93206.0,0.11239294]
[1764830619961,0.1297,93207.0,93206.0,0.11239294]
[1764830620177,0.1257,93207.0,93206.0,0.11239294]
[1764830620369,0.1307,93207.0,93206.0,0.06394294]
[1764830620573,0.1307,93207.0,93200.0,0.00999999]
[1764830620574,0.1307,93207.0,93190.0,0.095975]
[1764830620575,0.0107297,93191.0,93190.0,0.095975]
[1764830620774,0.0107297,93191.0,93186.0,0.095975]
[1764830620775,0.09414,93187.0,93186.0,0.095975]
[1764830621067,0.09414,93182.0,93173.0,0.0107317]
[1764830621260,0.12424379,93182.0,93181.0,0.09195944]
[1764830622461,0.12424379,93182.0,93181.0,0.10783514]
[1764830623071,0.12424379,93182.0,93181.0,0.10883514]
[1764830623270,0.12424379,93182.0,93181.0,0.06126514]
[1764830623461,0.12424379,93182.0,93181.0,0.01700514]
[1764830624965,0.12424379,93182.0,93181.0,0.10883514]
[1764830625464,0.12424379,93182.0,93181.0,0.06126514]
[1764830625770,0.12424379,93182.0,93181.0,0.01700514]
[1764830626564,0.12424379,93182.0,93181.0,0.10883514]
[1764830629872,0.12424379,93182.0,93181.0,0.01700514]
[1764830630578,0.12424379,93182.0,93181.0,0.10883514]
[1764830630980,0.12424379,93182.0,93181.0,0.01700514]
[1764830634577,0.12424379,93182.0,93150.0,0.15196791]
[1764830634578,0.09414,93154.0,93153.0,0.09183]
[1764830634778,0.12414,93154.0,93153.0,0.59055]
[1764830634976,0.12414,93154.0,93153.0,1.71530468]
[1764830635186,0.12414,93154.0,93153.0,1.60798725]
[1764830635880,0.12514,93154.0,93153.0,1.61898725]
[1764830636082,0.12514,93154.0,93153.0,0.11898725]
[1764830636678,0.12514,93154.0,93153.0,0.02715725]
[1764830637974,0.12514,93154.0,93153.0,0.02515725]
[1764830638280,0.12514,93154.0,93153.0,0.11798725]
[1764830638577,0.12514,93154.0,93153.0,0.11498725]
[1764830640581,0.12514,93154.0,93153.0,0.02315725]
[1764830640781,0.09414,93128.0,93127.0,0.09196732]
[1764830641083,0.03,93128.0,93127.0,0.10270442]
[1764830641279,0.00016103,93137.0,93136.0,0.1025661]
[1764830641874,0.00016103,93137.0,93136.0,0.20993539]
[1764830642376,0.03016103,93137.0,93136.0,0.20993539]
[1764830643085,0.03116103,93137.0,93136.0,0.21893539]
[1764830643478,0.03116103,93137.0,93136.0,0.71905539]
[1764830643674,0.00116103,93137.0,93136.0,1.11905539]
[1764830643879,0.00011285,93154.0,93153.0,0.1044241]
[1764830644180,0.03011285,93154.0,93153.0,0.6036641]
[1764830644384,0.03011285,93154.0,93153.0,0.71103339]
[1764830644579,0.07629285,93154.0,93153.0,0.71103339]
[1764830644781,0.12124285,93154.0,93153.0,0.1044241]
[1764830644983,0.12124285,93154.0,93153.0,0.6037041]
[1764830645286,0.12224285,93154.0,93153.0,0.1074241]
[1764830645475,0.12224285,93154.0,93153.0,0.6067041]
[1764830646679,0.03111285,93154.0,93153.0,0.6067041]
[1764830647088,0.03111285,93154.0,93153.0,0.6066641]
[1764830647788,0.03111285,93154.0,93153.0,0.6067041]
[1764830649392,0.03111285,93154.0,93153.0,0.71405379]
[1764830649786,0.03111285,93154.0,93153.0,1.15405379]
[1764830649988,0.00016103,93163.0,93162.0,0.1044231]